fUSD/lending_fUSD_20240902
["ID","MTS","AMOUNT","RATE_DAILY","PERIOD"]
[337009794,1725316232235,-244.95823504,0.0001399,2]
[337009795,1725316232244,-440.8,0.0001399,3]
[337009796,1725316232255,-150.0,0.00013999,2]
[337009797,1725316232264,-680.44754295,0.00014,2]
[337009798,1725316232284,-19.67215705,0.00014,2]
[337009799,1725316232294,-743.12178504,0.00014,4]
[337009800,1725316232306,-395805.76026651,0.00014,4]
[337009801,1725316232318,-10977.721407,0.00014,4]
[337009802,1725316232329,-275.58,0.00014032,2]
[337009803,1725316232339,-534.41332087,0.00014105,2]
[337009804,1725316232351,-965.58667913,0.00014105,2]
[337009805,1725316232360,-469.35,0.00014126,2]
[337009806,1725316232369,-128.19203357,0.000145,5]
[337009807,1725316232381,-271.80796643,0.000145,5]
[337009808,1725316232390,-124.67220529,0.000146,5]
[337009809,1725316232410,-280.56667432,0.000146,5]
[337009810,1725316232422,-394.76112039,0.000146,5]
[337009811,1725316232431,-5847.67487961,0.00014624,2]
[337009813,1725316238008,-172.84678231,0.00013932,2]
[337009814,1725316238018,-3980.50691523,0.00014624,2]
[337009815,1725316238030,-3275.81820516,0.00014624,2]
[337009816,1725316238039,-1827.0,0.000147,2]
[337009817,1725316238049,-1000.0,0.000147,2]
[337009818,1725316238058,-1200.0,0.000147,5]
[337009819,1725316238068,-795.0,0.00014726,2]
[337009820,1725316238082,-1000.0,0.00014764,2]
[337009821,1725316238091,-153.65,0.00014769,2]
[337009822,1725316238101,-184.18770664,0.000148,2]
[337009823,1725316238110,-5151.843,0.000148,2]
[337009824,1725316238121,-1600.0,0.000148,5]
[337009825,1725316238130,-153.65,0.00014806,2]
[337009826,1725316238139,-153.65,0.00014843,2]
[337009827,1725316238149,-420.0,0.00014891,2]
[337009828,1725316238159,-703.9466,0.000149,2]
[337009829,1725316238168,-1787.1388,0.000149,2]
[337009830,1725316238178,-1000.0,0.000149,2]
[337009831,1725316238187,-2167.2867,0.000149,2]
[337009832,1725316238197,-347.8876,0.000149,2]
[337009833,1725316238207,-37245.7677,0.000149,2]
[337009834,1725316238219,-39617.8838,0.000149,2]
[337009835,1725316238228,-1000.0,0.000149,2]
[337009836,1725316238238,-2100.0,0.000149,5]
[337009837,1725316238249,-500.0,0.00014973,2]
[337009838,1725316238259,-1626.05268544,0.0001498,3]
[337009839,1725316238268,-813.02634272,0.0001499,3]
[337009840,1725316238278,-2032.5658568,0.0001499,3]
[337009841,1725316238287,-77637.1370679,0.00015,2]
[337009842,1725316238311,-18457.385428,0.00015,2]
[337009843,1725316238323,-923.02152325,0.00015,2]
[337009844,1725316238334,-6445.5,0.00015,2]
[337009855,1725316239946,-3592.75,0.00015,2]
[337009856,1725316239958,-889.8535943,0.00015,2]
[337009857,1725316239970,-270.61499998,0.00015,2]
[337009858,1725316239980,-1432.78996694,0.00015,2]
[337009859,1725316240060,-9297.57583389,0.00015,2]
[337009860,1725316240071,-611.11,0.00015,2]
[337009861,1725316240082,-45542.4128972,0.00015,2]
[337009862,1725316240161,-2564.73486984,0.00015,2]
[337009863,1725316240170,-41355.318904,0.00015,2]
[337009864,1725316240181,-3836.10107719,0.00015,2]
[337009865,1725316240192,-5710.61751096,0.00015,2]
[337009866,1725316240203,-573.16626518,0.00015,2]
[337009867,1725316240217,-542849.25628549,0.00015,2]
[337009868,1725316240229,-308644.59859788,0.00015,2]
[337009869,1725316240361,-165102.10526792,0.00015,2]
[337009910,1725316242893,-250.0,0.00014159,2]
[337009911,1725316242902,-232.99999997,0.00015,2]
[337009913,1725316244865,-851.90336111,0.00015,2]
[337009914,1725316244908,-601.0,0.00014973,2]
[337009915,1725316244917,-38.17730569,0.00015,2]
[337009916,1725316244928,-6829.99999945,0.00015,2]
[337009917,1725316244939,-9225.0,0.00015,2]
[337009918,1725316244951,-22184.97987689,0.00015,2]
[337009919,1725316244969,-4850.0,0.00015,2]
[337009920,1725316244980,-2487.45835474,0.00015,2]
[337009921,1725316244991,-13423.64513516,0.00015,2]
[337009926,1725316245952,-246864.31828836,0.00015,2]
[337009927,1725316245963,-114114.04838944,0.00015,2]
[337009928,1725316246030,-15395.5566,0.00015,2]
[337009929,1725316246041,-682.34145148,0.00015,2]
[337009930,1725316246126,-3023.2344,0.00015,2]
[337009931,1725316246137,-28011.15393937,0.00015,2]
[337009932,1725316246149,-319.98639026,0.00015,2]
[337009936,1725316347867,182.9,0.00010959,2]
[337009937,1725316723791,456.04,0.00011776,2]
[337009938,1725317020854,500.0,0.00027,120]
[337009939,1725317031977,432.0,0.00027,120]
[337009940,1725317062103,164.33,0.00010959,2]
[337009941,1725317110691,178.53,0.0001075,2]
[337009945,1725317259075,150.0,0.00025,61]
[337009946,1725317260145,150.0,0.00025,61]
[337009947,1725317260888,150.0,0.00025,61]
[337009948,1725317261770,150.0,0.00025,61]
[337009949,1725317262677,150.0,0.00025,61]
[337009950,1725317266468,449.35,0.00011592,2]
[337009951,1725317269028,150.0,0.00025,61]
[337009952,1725317269791,150.0,0.00025,61]
[337009953,1725317270552,150.0,0.00025,61]
[337009954,1725317271369,150.0,0.00025,61]
[337009955,1725317272159,150.0,0.00025,61]
[337009956,1725317276296,150.0,0.00025,62]
[337009957,1725317277067,150.0,0.00025,62]
[337009958,1725317277966,150.0,0.00025,62]
[337009959,1725317278773,150.0,0.00025,62]
[337009960,1725317279677,150.0,0.00025,62]
[337009961,1725317280453,150.0,0.00025,62]
[337009962,1725317281228,150.0,0.00025,62]
[337009963,1725317282052,150.0,0.00025,62]
[337009964,1725317282920,150.0,0.00025,62]
[337009965,1725317283777,150.0,0.00025,62]
[337009966,1725317288709,150.0,0.00025,63]
[337009967,1725317289455,150.0,0.00025,63]
[337009968,1725317290194,150.0,0.00025,63]
[337009969,1725317290947,150.0,0.00025,63]
[337009970,1725317291710,150.0,0.00025,63]
[337009971,1725317292441,150.0,0.00025,63]
[337009972,1725317293243,150.0,0.00025,63]
[337009973,1725317294036,150.0,0.00025,63]
[337009974,1725317294838,150.0,0.00025,63]
[337009975,1725317295681,150.0,0.00025,63]
[337009976,1725317301061,150.0,0.00025,64]
[337009977,1725317301952,150.0,0.00025,64]
[337009978,1725317302673,150.0,0.00025,64]
[337009979,1725317303475,150.0,0.00025,64]
[337009980,1725317304318,150.0,0.00025,64]
[337009981,1725317305100,150.0,0.00025,64]
[337009982,1725317305912,150.0,0.00025,64]
[337009983,1725317306905,150.0,0.00025,64]
[337009984,1725317307555,150.0,0.00025,64]
[337009985,1725317308636,150.0,0.00025,64]
[337009986,1725317319618,150.0,0.00025,68]
[337009987,1725317320370,150.0,0.00025,68]
[337009988,1725317321118,150.0,0.00025,68]
[337009989,1725317321896,150.0,0.00025,68]
[337009990,1725317322708,150.0,0.00025,68]
[337009991,1725317323415,150.0,0.00025,68]
[337009992,1725317324530,150.0,0.00025,68]
[337009993,1725317325083,150.0,0.00025,68]
[337009994,1725317325994,150.0,0.00025,68]
[337009995,1725317326817,150.0,0.00025,68]
[337009996,1725317330818,150.0,0.00025,69]
[337009997,1725317331645,150.0,0.00025,69]
[337009998,1725317332228,550.0,0.00011,2]
[337009999,1725317332470,150.0,0.00025,69]
[337010000,1725317333309,150.0,0.00025,69]
[337010001,1725317334152,150.0,0.00025,69]
[337010002,1725317334996,150.0,0.00025,69]
[337010003,1725317335848,150.0,0.00025,69]
[337010004,1725317336723,150.0,0.00025,69]
[337010005,1725317337544,150.0,0.00025,69]
[337010006,1725317338660,150.0,0.00025,69]
[337010007,1725317343869,150.0,0.00027,120]
[337010015,1725317432002,-6844.58994753,0.0001336,2]
[337010016,1725317432030,-2883.57498914,0.0001336,2]
[337010017,1725317432044,-325.89,0.0001336,2]
[337010018,1725317432058,-373.14415351,0.0001336,2]
[337010019,1725317432084,-403.55536294,0.0001336,2]
[337010020,1725317432097,-877.59932225,0.0001336,2]
[337010021,1725317432116,-368.39822246,0.0001336,2]
[337010022,1725317432128,-11823.24800217,0.0001336,2]
[337010023,1725317432140,-1500.0,0.0001336,2]
[337010024,1725317432152,-250.0,0.0001336,2]
[337010025,1725317432163,-220.46,0.00013463,2]
[337010026,1725317432176,-245.67,0.00013475,2]
[337010027,1725317432187,-5921.53429979,0.00013509,2]
[337010028,1725317432200,-542.84,0.00013509,2]
[337010029,1725317432212,-1358.08,0.00013514,2]
[337010030,1725317432225,-250.0,0.00013514,2]
[337010031,1725317432240,-250.0,0.00013622,2]
[337010032,1725317432252,-1000.0,0.00013637,2]
[337010033,1725317432263,-150.0,0.00013693,2]
[337010034,1725317432274,-1361.63,0.00013693,2]
[337010035,1725317432285,-999.99,0.00013694,2]
[337010036,1725317432295,-600.09,0.00013694,2]
[337010037,1725317432306,-163.6,0.00013694,2]
[337010038,1725317432318,-7868.13416279,0.00013694,2]
[337010039,1725317432332,-404.0365253,0.00013694,2]
[337010040,1725317432348,-42653.56931191,0.00013694,2]
[337010041,1725317432360,-3101.93,0.00013694,2]
[337010042,1725317432371,-299.99,0.00013694,2]
[337010043,1725317432382,-1250.89,0.00013694,2]
[337010044,1725317432395,-1136.31,0.00013694,2]
[337010045,1725317432406,-150.99,0.00013694,2]
[337010046,1725317432418,-7324.75,0.0001377,2]
[337010047,1725317432430,-499.99,0.0001377,2]
[337010048,1725317432443,-911.85,0.0001377,2]
[337010049,1725317432454,-213.8049,0.000138,2]
[337010050,1725317432465,-8541.68,0.000138,2]
[337010051,1725317432476,-3791.1011,0.000138,2]
[337010052,1725317432487,-449.35,0.00013856,2]
[337010053,1725317432499,-779.07,0.0001389,3]
[337010054,1725317432509,-69274.4742,0.000139,2]
[337010055,1725317432521,-8529.9460353,0.0001394,2]
[337010056,1725317432531,-151.94,0.00014456,2]
[337010057,1725317432543,-151.94,0.0001446,2]
[337010058,1725317432554,-151.94,0.00014464,2]
[337010059,1725317432566,-151.94,0.00014468,2]
[337010060,1725317432580,-151.94,0.00014472,2]
[337010061,1725317432592,-151.94,0.00014476,2]
[337010062,1725317432603,-151.94,0.0001448,2]
[337010063,1725317432615,-151.94,0.00014484,2]
[337010064,1725317432626,-151.94,0.00014488,2]
[337010065,1725317432637,-151.94,0.00014492,2]
[337010066,1725317432649,-151.94,0.00014496,2]
[337010067,1725317432659,-151.94,0.000145,2]
[337010068,1725317432671,-151.94,0.00014504,2]
[337010069,1725317432682,-151.94,0.00014508,2]
[337010070,1725317432695,-151.94,0.00014512,2]
[337010071,1725317432705,-151.94,0.00014516,2]
[337010072,1725317432716,-151.94,0.0001452,2]
[337010073,1725317432726,-151.94,0.00014524,2]
[337010074,1725317432736,-151.94,0.00014528,2]
[337010075,1725317432748,-215.56,0.00014568,2]
[337010076,1725317432758,-2500.0,0.0001479,2]
[337010077,1725317432769,-6736.9809,0.0001489,2]
[337010078,1725317432780,-8922.9257,0.0001489,2]
[337010079,1725317432792,-424.9518,0.0001489,2]
[337010080,1725317432802,-195.58211871,0.00014897,2]
[337010081,1725317432813,-157.40526554,0.000149,2]
[337010082,1725317432824,-1000.0,0.000149,2]
[337010083,1725317432835,-182.4428,0.000149,2]
[337010084,1725317432846,-176.20591623,0.000149,2]
[337010085,1725317432857,-4802.2494,0.000149,2]
[337010086,1725317432867,-1200.2826,0.000149,2]
[337010087,1725317432878,-602.19037199,0.00014973,2]
[337010088,1725317432890,-155.57057126,0.00014973,2]
[337010089,1725317432901,-500.0,0.00014973,2]
[337010090,1725317432912,-500.0,0.00014973,2]
[337010091,1725317432923,-4178.03256915,0.0001499,3]
[337010092,1725317432933,-201.10166491,0.0001499,2]
[337010093,1725317432944,-201.10166491,0.0001499,2]
[337010094,1725317432955,-150.56,0.0001499,2]
[337010095,1725317432966,-786.35497495,0.00014997,2]
[337010096,1725317432977,-500.0,0.00014999,2]
[337010097,1725317432987,-500.0,0.00014999,2]
[337010098,1725317432998,-500.0,0.00014999,2]
[337010099,1725317433009,-500.0,0.00014999,2]
[337010100,1725317433020,-500.0,0.00014999,2]
[337010101,1725317433031,-500.0,0.00014999,2]
[337010102,1725317433042,-646.38553087,0.00014999,2]
[337010103,1725317433053,-500.0,0.00014999,2]
[337010104,1725317433065,-258.20192451,0.00014999,2]
[337010105,1725317433076,-500.0,0.00014999,2]
[337010106,1725317433088,-309.97129224,0.00014999,2]
[337010107,1725317433100,-202.36880311,0.00014999,2]
[337010108,1725317433111,-500.0,0.00014999,2]
[337010109,1725317433123,-500.0,0.00014999,2]
[337010110,1725317433134,-1158505.67050345,0.00015,2]
[337010111,1725317433149,-4228.74092643,0.00015,2]
[337010112,1725317433162,-2500.0,0.00015,2]
[337010113,1725317433176,-27606.01608777,0.00015,2]
[337010114,1725317433196,-3641.40814063,0.00015,2]
[337010117,1725317438039,-500.0,0.00014973,2]
[337010118,1725317438050,-9.3973985,0.00015,2]
[337010119,1725317438143,-110173.11830678,0.00015,2]
[337010120,1725317438156,-3693.05223629,0.00015,2]
[337010121,1725317438168,-296.68867778,0.00015,2]
[337010122,1725317438181,-514.10062394,0.00015,2]
[337010123,1725317438195,-1264.25000003,0.00015,2]
[337010124,1725317438408,-2021.21719163,0.00015,2]
[337010125,1725317438420,-156801.71195421,0.00015,2]
[337010146,1725317440107,-257.884,0.00015,2]
[337010147,1725317440119,-3461.51161736,0.00015,2]
[337010192,1725317445106,-812.3387836,0.00014998,2]
[337010193,1725317445116,-8363.05098976,0.00015,2]
[337010207,1725317446116,-321.10559008,0.000149,2]
[337010209,1725317446126,-585.20940992,0.00015,2]
[337010211,1725317446139,-444.61027215,0.00015,2]
[337010226,1725317446293,-3060.0,0.00015,2]
[337010228,1725317446308,-5450.24169412,0.00015,2]
[337010230,1725317446319,-330.56079548,0.00015,2]
[337010233,1725317446330,-30518.3,0.00015,2]
[337010278,1725317549925,161.19,0.00010959,2]
[337010279,1725317594357,178.53,0.00012793,2]
[337010280,1725317757459,419.73,0.00012439,2]
[337010281,1725318003968,150.0,0.00012439,2]
[337010282,1725318004164,150.0,0.00012439,2]
[337010283,1725318004379,150.0,0.00012439,2]
[337010284,1725318004601,150.0,0.00012439,2]
[337010285,1725318004825,150.0,0.00012439,2]
[337010286,1725318005027,208.14,0.00012439,2]
[337010287,1725318239480,467.76640968,0.00025,60]
[337010288,1725318242438,398.74,0.00012126,2]
[337010289,1725318292269,500.0,0.00012501,31]
[337010290,1725318342078,500.0,0.00025,60]
[337010291,1725318632280,-1081.0,0.00013264,2]
[337010292,1725318632293,-150.0,0.00013264,2]
[337010293,1725318632304,-253.23,0.00013265,2]
[337010294,1725318632314,-23900.0,0.00013265,2]
[337010295,1725318632324,-250.0,0.00013265,2]
[337010296,1725318632334,-5851.02806322,0.00013265,2]
[337010297,1725318632344,-16759.6521,0.000138,2]
[337010298,1725318632354,-590.58,0.00013816,2]
[337010299,1725318632363,-1500.0,0.00013816,2]
[337010300,1725318632372,-44486.3,0.00013866,2]
[337010301,1725318632382,-150.0,0.00013968,2]
[337010302,1725318632392,-250.0,0.0001397,2]
[337010303,1725318632404,-500.0,0.00014,2]
[337010304,1725318632414,-378.04,0.00014,2]
[337010305,1725318632424,-500.0,0.00014,2]
[337010306,1725318632435,-250.0,0.00014015,2]
[337010307,1725318632446,-215.56,0.00014104,2]
[337010308,1725318632456,-13109.18575486,0.00014225,2]
[337010309,1725318632466,-1000.0,0.0001428,2]
[337010310,1725318632475,-255.0,0.00014378,2]
[337010311,1725318632484,-398.74,0.0001439,2]
[337010313,1725318632493,-5135.19,0.0001439,2]
[337010315,1725318632502,-499.99,0.0001439,2]
[337010316,1725318632511,-180.52,0.00014588,2]
[337010318,1725318632520,-150.99,0.00014588,2]
[337010320,1725318632529,-150.99,0.00014588,2]
[337010321,1725318632540,-1656.41152646,0.0001485,2]
[337010322,1725318632549,-2983.295,0.0001486,2]
[337010323,1725318632558,-3028.0524,0.0001489,2]
[337010324,1725318632567,-37066.1822,0.0001489,2]
[337010325,1725318632575,-1000.0,0.0001489,2]
[337010326,1725318632585,-225.0512,0.0001489,2]
[337010327,1725318632594,-3565.87,0.0001489,2]
[337010328,1725318632603,-1842.8774,0.0001489,2]
[337010329,1725318632612,-475.1075,0.0001489,2]
[337010330,1725318632621,-378.9962,0.0001489,2]
[337010331,1725318632630,-4239.0719,0.0001489,2]
[337010332,1725318632639,-321.10559004,0.00014897,2]
[337010333,1725318632648,-10805.96873948,0.00014898,2]
[337010334,1725318632657,-867.538723,0.000149,2]
[337010335,1725318632666,-171.13435388,0.000149,2]
[337010336,1725318632675,-500.0,0.00014925,2]
[337010337,1725318632684,-500.0,0.00014925,2]
[337010338,1725318632694,-500.0,0.00014925,2]
[337010339,1725318632703,-500.0,0.00014925,2]
[337010340,1725318632712,-500.0,0.00014925,2]
[337010341,1725318632721,-500.0,0.00014925,2]
[337010342,1725318632731,-500.0,0.00014925,2]
[337010343,1725318632739,-500.0,0.00014925,2]
[337010344,1725318632748,-500.0,0.00014925,2]
[337010345,1725318632758,-500.0,0.00014925,2]
[337010346,1725318632767,-164.5191,0.00014925,2]
[337010348,1725318632776,-2983.295,0.0001494,2]
[337010349,1725318632786,-500.0,0.00014973,2]
[337010350,1725318632795,-500.0,0.00014973,2]
[337010351,1725318632804,-500.0,0.00014973,2]
[337010352,1725318632813,-500.0,0.00014973,2]
[337010354,1725318632823,-302.63485405,0.00014973,2]
[337010355,1725318632832,-200.0,0.00014973,2]
[337010356,1725318632841,-152.18,0.0001498,2]
[337010357,1725318632850,-500.0,0.00014989,2]
[337010358,1725318632859,-500.0,0.00014989,2]
[337010359,1725318632869,-519.40523966,0.00014989,2]
[337010360,1725318632878,-500.0,0.00014989,2]
[337010361,1725318632888,-500.0,0.00014989,2]
[337010362,1725318632898,-500.0,0.00014989,2]
[337010363,1725318632907,-192.73688031,0.00014989,2]
[337010364,1725318632916,-188986.485058,0.0001499,3]
[337010365,1725318632925,-175161.310595,0.0001499,3]
[337010366,1725318632935,-201.10166491,0.0001499,2]
[337010367,1725318632943,-281.39601331,0.00014997,2]
[337010368,1725318632953,-150.0,0.00014998,2]
[337010369,1725318632962,-150.0,0.00014998,2]
[337010370,1725318632971,-150.0,0.00014998,2]
[337010371,1725318632980,-1885.8486517,0.00014998,2]
[337010372,1725318632989,-394.3582043,0.00014998,2]
[337010373,1725318632998,-3608.0157276,0.00014998,2]
[337010374,1725318633007,-583.37837083,0.00014998,2]
[337010375,1725318633017,-1000.0,0.00014999,2]
[337010376,1725318633026,-1000.0,0.00014999,2]
[337010377,1725318633035,-1000.0,0.00014999,2]
[337010378,1725318633051,-1000.0,0.00014999,2]
[337010379,1725318633061,-1000.0,0.00014999,2]
[337010380,1725318633070,-1000.0,0.00014999,2]
[337010381,1725318633080,-1000.0,0.00014999,2]
[337010382,1725318633090,-1000.0,0.00014999,2]
[337010383,1725318633100,-1000.0,0.00014999,2]
[337010384,1725318633110,-1000.0,0.00014999,2]
[337010385,1725318633119,-1000.0,0.00014999,2]
[337010386,1725318633128,-1000.0,0.00014999,2]
[337010387,1725318633137,-1000.0,0.00014999,2]
[337010388,1725318633147,-1000.0,0.00014999,2]
[337010389,1725318633156,-190.0,0.00014999,2]
[337010390,1725318633166,-341.02909088,0.00014999,2]
[337010391,1725318633175,-317715.93296443,0.00015,2]
[337010392,1725318633185,-240756.61819785,0.00015,2]
[337010393,1725318633194,-307.0,0.00015,2]
[337010394,1725318633204,-206467.75137868,0.00015,2]
[337010395,1725318633216,-1000.0,0.00015,2]
[337010396,1725318633225,-1000.0,0.00015,2]
[337010397,1725318633235,-1000.0,0.00015,2]
[337010398,1725318633244,-1000.0,0.00015,2]
[337010399,1725318633255,-1006.7126008,0.00015,2]
[337010400,1725318633263,-2000.0,0.00015,2]
[337010401,1725318633272,-200.0,0.00015,2]
[337010402,1725318633282,-2983.295,0.00015,2]
[337010403,1725318633294,-2983.295,0.00015,2]
[337010404,1725318633303,-1236.4,0.00015,2]
[337010405,1725318633313,-1078.9752638,0.0001501,2]
[337010406,1725318633322,-2983.295,0.0001502,2]
[337010407,1725318633332,-29734.940861,0.00015058,2]
[337010408,1725318633341,-151.245475,0.00015058,2]
[337010409,1725318633350,-176.813494,0.00015058,2]
[337010410,1725318633359,-176.813494,0.00015058,2]
[337010411,1725318633368,-151.0,0.00015058,2]
[337010412,1725318633377,-151.0,0.00015058,2]
[337010413,1725318633386,-194.518377,0.00015058,2]
[337010414,1725318633395,-151.178134,0.00015058,2]
[337010415,1725318633404,-194.518377,0.00015058,2]
[337010416,1725318633413,-155.508206,0.00015058,2]
[337010417,1725318633422,-700.0,0.00015068,2]
[337010418,1725318633431,-800.0,0.00015068,2]
[337010419,1725318633441,-2983.29501,0.000151,2]
[337010420,1725318633450,-7006.45242381,0.0001514,3]
[337010421,1725318633460,-220.46,0.00015146,2]
[337010422,1725318633469,-200.0,0.0001515,2]
[337010423,1725318633478,-7006.45242381,0.00015233,3]
[337010424,1725318633487,-7006.45242381,0.00015233,3]
[337010425,1725318633496,-1259.0,0.00015243,2]
[337010426,1725318633505,-303.913,0.00015243,2]
[337010427,1725318633514,-533.89,0.00015243,2]
[337010428,1725318633523,-551.0,0.00015243,2]
[337010429,1725318633532,-1895.0,0.00015243,2]
[337010430,1725318633543,-3340.0,0.00015243,2]
[337010431,1725318633552,-299.964,0.00015243,2]
[337010432,1725318633561,-247.0,0.00015243,2]
[337010433,1725318633570,-1652.507,0.00015243,2]
[337010434,1725318633579,-240.562,0.00015243,2]
[337010435,1725318633588,-12904.247,0.00015243,2]
[337010436,1725318633597,-151.652981,0.00015243,2]
[337010437,1725318633606,-151.556494,0.00015243,2]
[337010438,1725318633615,-151.0,0.00015243,2]
[337010439,1725318633624,-151.0,0.00015243,2]
[337010440,1725318633633,-151.0,0.00015243,2]
[337010441,1725318633643,-151.0,0.00015243,2]
[337010442,1725318633652,-151.0,0.00015243,2]
[337010443,1725318633661,-151.0,0.00015243,2]
[337010444,1725318633670,-151.0,0.00015243,2]
[337010445,1725318633680,-151.0,0.00015243,2]
[337010446,1725318633689,-151.186742,0.00015243,2]
[337010447,1725318633699,-151.0,0.00015243,2]
[337010448,1725318633708,-151.0,0.00015243,2]
[337010449,1725318633717,-151.0,0.00015243,2]
[337010450,1725318633727,-151.0,0.00015243,2]
[337010451,1725318633736,-151.0,0.00015243,2]
[337010452,1725318633745,-151.0,0.00015243,2]
[337010453,1725318633754,-151.0,0.00015243,2]
[337010454,1725318633764,-151.0,0.00015243,2]
[337010455,1725318633773,-151.0,0.00015243,2]
[337010456,1725318633783,-151.0,0.00015243,2]
[337010457,1725318633794,-795.0,0.00015501,2]
[337010458,1725318633803,-795.0,0.00015501,2]
[337010459,1725318633812,-795.0,0.00015501,2]
[337010460,1725318633821,-294.16267,0.00015501,2]
[337010461,1725318633831,-152.905851,0.00015501,2]
[337010462,1725318633840,-151.0,0.00015501,2]
[337010463,1725318633850,-777.0,0.000156,2]
[337010464,1725318633859,-171.13435387,0.00015614,2]
[337010465,1725318633869,-3073.0,0.000159,2]
[337010466,1725318633878,-7006.45242381,0.00015989,3]
[337010467,1725318633887,-150.0,0.00015999,2]
[337010468,1725318633897,-150.0,0.00015999,2]
[337010469,1725318633906,-150.0,0.00015999,2]
[337010470,1725318633916,-447.0,0.00015999,2]
[337010471,1725318633925,-623.0,0.00015999,2]
[337010472,1725318633934,-323.722,0.00015999,2]
[337010473,1725318633943,-10805.96873945,0.00016009,2]
[337010474,1725318633952,-1000.0,0.00016065,2]
[337010475,1725318633962,-7006.45242381,0.00016154,3]
[337010476,1725318633971,-500.0,0.00016164,2]
[337010477,1725318633980,-500.0,0.00016164,2]
[337010478,1725318633989,-500.0,0.00016164,2]
[337010479,1725318633998,-795.0,0.00016276,2]
[337010480,1725318634008,-795.0,0.00016276,2]
[337010481,1725318634017,-795.0,0.00016276,2]
[337010482,1725318634027,-171.13435387,0.00016329,2]
[337010483,1725318634037,-180.52,0.00016411,2]
[337010484,1725318634046,-700.0,0.00016438,2]
[337010485,1725318634055,-800.0,0.00016438,2]
[337010486,1725318634065,-150.0,0.00016438,2]
[337010487,1725318634074,-151.0,0.00016438,2]
[337010488,1725318634083,-274.698014,0.00016438,2]
[337010489,1725318634093,-398.74,0.00016654,2]
[337010490,1725318634102,-220.46,0.00016829,2]
[337010491,1725318634111,-1724.52,0.00016986,2]
[337010492,1725318634120,-171.13435387,0.00017043,2]
[337010493,1725318634129,-795.0,0.0001709,2]
[337010494,1725318634138,-7006.45242381,0.00017111,3]
[337010495,1725318634148,-10805.96873945,0.00017121,2]
[337010496,1725318634157,-7006.45242381,0.00017332,3]
[337010497,1725318634166,-791.55,0.00017342,2]
[337010498,1725318634175,-791.55,0.00017342,2]
[337010499,1725318634184,-791.55,0.00017342,2]
[337010500,1725318634193,-791.55,0.00017342,2]
[337010501,1725318634203,-791.55,0.00017342,2]
[337010502,1725318634215,-791.55,0.00017342,2]
[337010503,1725318634224,-791.55,0.00017342,2]
[337010504,1725318634233,-791.55,0.00017342,2]
[337010505,1725318634242,-791.55,0.00017342,2]
[337010506,1725318634253,-791.55,0.00017342,2]
[337010507,1725318634262,-791.55,0.00017342,2]
[337010508,1725318634271,-791.55,0.00017342,2]
[337010509,1725318634280,-791.55,0.00017342,2]
[337010510,1725318634291,-791.55,0.00017342,2]
[337010511,1725318634299,-791.55,0.00017342,2]